[Event "Early-Titled-Tuesday-Blitz-October-03-2023"]
[Site "Chess.com"]
[Date "2023.10.03"]
[Round "2"]
[White "SashaKuzhilniy"]
[Black "vugarrasulov"]
[Result "1/2-1/2"]
[WhiteElo "2625"]
[BlackElo "2943"]
[TimeControl "180+1"]
[EndTime "8:19:42 PDT"]
[Termination "Game drawn by repetition"]

1. e4 {[%clk 0:02:55.6]} 1... c5 {[%clk 0:02:59.9]} 2. Nf3 {[%clk 0:02:55.5]}
2... Nc6 {[%clk 0:03:00.3]} 3. d4 {[%clk 0:02:52.2]} 3... cxd4 {[%clk
0:03:00.6]} 4. Nxd4 {[%clk 0:02:53.1]} 4... e5 {[%clk 0:03:01]} 5. Nb5 {[%clk
0:02:52.9]} 5... d6 {[%clk 0:03:01.4]} 6. c4 {[%clk 0:02:52.6]} 6... Be7 {[%clk
0:03:01.4]} 7. N1c3 {[%clk 0:02:51.9]} 7... a6 {[%clk 0:03:01.7]} 8. Na3 {[%clk
0:02:52]} 8... Be6 {[%clk 0:03:02]} 9. Be2 {[%clk 0:02:46.7]} 9... Rc8 {[%clk
0:03:00.8]} 10. O-O {[%clk 0:02:44]} 10... Nd4 {[%clk 0:02:58.4]} 11. Be3 {[%clk
0:02:36.6]} 11... Nxe2+ {[%clk 0:02:55.9]} 12. Qxe2 {[%clk 0:02:37.5]} 12... Nf6
{[%clk 0:02:55.2]} 13. Rac1 {[%clk 0:02:31.5]} 13... O-O {[%clk 0:02:53.4]} 14.
b3 {[%clk 0:02:25]} 14... Qa5 {[%clk 0:02:49.1]} 15. Nab1 {[%clk 0:02:24.7]}
15... b5 {[%clk 0:02:39.8]} 16. Nd5 {[%clk 0:01:50.3]} 16... Nxd5 {[%clk
0:02:29.5]} 17. cxd5 {[%clk 0:01:48.9]} 17... Bd7 {[%clk 0:02:29.8]} 18. Qd2
{[%clk 0:01:36]} 18... Qxd2 {[%clk 0:02:14.8]} 19. Nxd2 {[%clk 0:01:34.9]} 19...
a5 {[%clk 0:02:13]} 20. a3 {[%clk 0:01:24.8]} 20... a4 {[%clk 0:01:59.4]} 21. b4
{[%clk 0:01:24.1]} 21... f5 {[%clk 0:01:57.3]} 22. f3 {[%clk 0:01:12.4]} 22...
Kf7 {[%clk 0:01:57.2]} 23. exf5 {[%clk 0:01:05.1]} 23... Bxf5 {[%clk 0:01:54.4]}
24. Ne4 {[%clk 0:01:05.4]} 24... Bd7 {[%clk 0:01:33.5]} 25. Kf2 {[%clk
0:01:00.3]} 25... h6 {[%clk 0:01:25.7]} 26. Rxc8 {[%clk 0:00:55.1]} 26... Rxc8
{[%clk 0:01:25.4]} 27. Rc1 {[%clk 0:00:55.8]} 27... Rxc1 {[%clk 0:01:13.4]} 28.
Bxc1 {[%clk 0:00:56.7]} 28... Ke8 {[%clk 0:01:13.2]} 29. g4 {[%clk 0:00:51.7]}
29... Kd8 {[%clk 0:01:12.2]} 30. Ke2 {[%clk 0:00:50.4]} 30... Kc7 {[%clk
0:01:12.4]} 31. Be3 {[%clk 0:00:47.3]} 31... Kb7 {[%clk 0:01:09]} 32. Kd3 {[%clk
0:00:46.2]} 32... Be8 {[%clk 0:01:05.9]} 33. h3 {[%clk 0:00:31.4]} 33... Bf7
{[%clk 0:01:05.7]} 34. Nc3 {[%clk 0:00:30.7]} 34... Ka6 {[%clk 0:01:06.4]} 35.
Bf2 {[%clk 0:00:28.5]} 35... Bg5 {[%clk 0:01:06.2]} 36. Be3 {[%clk 0:00:27.8]}
36... Bh4 {[%clk 0:01:06.3]} 37. Ke2 {[%clk 0:00:25.1]} 37... h5 {[%clk
0:00:58.8]} 38. Bf2 {[%clk 0:00:24.2]} 38... Bd8 {[%clk 0:00:55.1]} 39. Be3
{[%clk 0:00:24.2]} 39... hxg4 {[%clk 0:00:53.4]} 40. hxg4 {[%clk 0:00:24]} 40...
Be7 {[%clk 0:00:45.3]} 41. Kd3 {[%clk 0:00:23.5]} 41... Kb7 {[%clk 0:00:44]} 42.
Ke2 {[%clk 0:00:19.6]} 42... Be8 {[%clk 0:00:43.7]} 43. Kd3 {[%clk 0:00:19.6]}
43... Kc8 {[%clk 0:00:44.3]} 44. Ne4 {[%clk 0:00:18.5]} 44... Bg6 {[%clk
0:00:41.9]} 45. Ke2 {[%clk 0:00:17.5]} 45... Kd8 {[%clk 0:00:38.5]} 46. Nc3
{[%clk 0:00:17.8]} 46... Be8 {[%clk 0:00:38.5]} 47. Kd3 {[%clk 0:00:18.2]} 47...
Bd7 {[%clk 0:00:38.1]} 48. Ne4 {[%clk 0:00:18.2]} 48... Bc8 {[%clk 0:00:33.4]}
49. Bg5 {[%clk 0:00:17.5]} 49... Bxg5 {[%clk 0:00:20.6]} 50. Nxg5 {[%clk
0:00:18.4]} 50... Ke7 {[%clk 0:00:21.2]} 51. Ne4 {[%clk 0:00:14.6]} 51... Bd7
{[%clk 0:00:21.8]} 52. Nc3 {[%clk 0:00:14]} 52... Be8 {[%clk 0:00:20.2]} 53. Ke3
{[%clk 0:00:14]} 53... Kf6 {[%clk 0:00:18.8]} 54. Ne4+ {[%clk 0:00:13.9]} 54...
Ke7 {[%clk 0:00:19.6]} 55. Nc3 {[%clk 0:00:14.3]} 55... Bd7 {[%clk 0:00:19]} 56.
Ke4 {[%clk 0:00:14.5]} 56... g6 {[%clk 0:00:18.3]} 57. Ke3 {[%clk 0:00:14.8]}
57... Be8 {[%clk 0:00:17.7]} 58. g5 {[%clk 0:00:13.7]} 58... Bd7 {[%clk
0:00:17.6]} 59. Ke4 {[%clk 0:00:14]} 59... Kd8 {[%clk 0:00:17.2]} 60. f4 {[%clk
0:00:12.5]} 60... Bf5+ {[%clk 0:00:14.7]} 61. Ke3 {[%clk 0:00:13]} 61... exf4+
{[%clk 0:00:15.2]} 62. Kxf4 {[%clk 0:00:13.9]} 62... Bd3 {[%clk 0:00:15.3]} 63.
Ke3 {[%clk 0:00:14.4]} 63... Bc4 {[%clk 0:00:15.7]} 64. Kd4 {[%clk 0:00:14.9]}
64... Bf1 {[%clk 0:00:16.2]} 65. Ne4 {[%clk 0:00:15.2]} 65... Ke7 {[%clk
0:00:16.5]} 66. Nd2 {[%clk 0:00:15]} 66... Bg2 {[%clk 0:00:15.6]} 67. Nb1 {[%clk
0:00:13.8]} 67... Kd7 {[%clk 0:00:15.6]} 68. Nc3 {[%clk 0:00:14.4]} 68... Bf1
{[%clk 0:00:16.3]} 69. Nd1 {[%clk 0:00:14.8]} 69... Ke7 {[%clk 0:00:14.7]} 70.
Ne3 {[%clk 0:00:15.2]} 70... Be2 {[%clk 0:00:15.3]} 71. Ng2 {[%clk 0:00:15.3]}
71... Bg4 {[%clk 0:00:14]} 72. Nf4 {[%clk 0:00:15.6]} 72... Bf5 {[%clk
0:00:14.6]} 73. Ke3 {[%clk 0:00:15.8]} 73... Kd7 {[%clk 0:00:14.3]} 74. Ne2
{[%clk 0:00:16.4]} 74... Ke7 {[%clk 0:00:14.2]} 75. Nd4 {[%clk 0:00:16.4]} 75...
Bd7 {[%clk 0:00:14.9]} 76. Ke4 {[%clk 0:00:16.1]} 76... Kd8 {[%clk 0:00:15.2]}
77. Ne2 {[%clk 0:00:11.3]} 77... Kc7 {[%clk 0:00:15.6]} 78. Nf4 {[%clk
0:00:11.6]} 78... Bf5+ {[%clk 0:00:15.5]} 79. Kd4 {[%clk 0:00:12.2]} 79... Kb6
{[%clk 0:00:15.9]} 80. Ne2 {[%clk 0:00:11]} 80... Kc7 {[%clk 0:00:15.5]} 81. Nc3
{[%clk 0:00:11.4]} 81... Bd7 {[%clk 0:00:14.7]} 82. Ke3 {[%clk 0:00:11.7]} 82...
Be8 {[%clk 0:00:14.6]} 83. Ne2 {[%clk 0:00:12.1]} 83... Bf7 {[%clk 0:00:14.4]}
84. Nf4 {[%clk 0:00:12.5]} 84... Kd7 {[%clk 0:00:14.9]} 85. Ke4 {[%clk
0:00:12.8]} 85... Ke7 {[%clk 0:00:15.2]} 86. Ne2 {[%clk 0:00:12]} 86... Be8
{[%clk 0:00:15.7]} 87. Nd4 {[%clk 0:00:12.6]} 87... Bd7 {[%clk 0:00:16.3]} 88.
Ke3 {[%clk 0:00:11.7]} 88... Ke8 {[%clk 0:00:15.8]} 89. Ne2 {[%clk 0:00:11.7]}
89... Kd8 {[%clk 0:00:15.8]} 90. Kd4 {[%clk 0:00:12.4]} 90... Kc7 {[%clk
0:00:15.9]} 91. Nf4 {[%clk 0:00:13]} 91... Bf5 {[%clk 0:00:16.2]} 92. Ne2 {[%clk
0:00:12.4]} 92... Kd8 {[%clk 0:00:15.7]} 93. Nc3 {[%clk 0:00:13.2]} 93... Bd7
{[%clk 0:00:16.2]} 94. Ne4 {[%clk 0:00:13.7]} 94... Ke7 {[%clk 0:00:16.6]} 95.
Nf6 {[%clk 0:00:14.2]} 95... Bf5 {[%clk 0:00:15]} 96. Ke3 {[%clk 0:00:14.5]}
96... Kd8 {[%clk 0:00:13.2]} 97. Ne4 {[%clk 0:00:12.9]} 97... Bxe4 {[%clk
0:00:11.2]} 98. Kxe4 {[%clk 0:00:13.8]} 98... Ke7 {[%clk 0:00:12]} 99. Kd4
{[%clk 0:00:14.5]} 99... Kd7 {[%clk 0:00:12.9]} 100. Ke4 {[%clk 0:00:15.4]}
100... Kc7 {[%clk 0:00:13.4]} 101. Kd4 {[%clk 0:00:16.3]} 101... Kd7 {[%clk
0:00:14.2]} 102. Ke4 {[%clk 0:00:17.2]} 102... Ke7 {[%clk 0:00:15.1]} 103. Kd4
{[%clk 0:00:18.1]} 103... Kd7 {[%clk 0:00:16]} 1/2-1/2

[Event "Early-Titled-Tuesday-Blitz-October-03-2023"]
[Site "Chess.com"]
[Date "2023.10.03"]
[Round "2"]
[White "AEMEffi"]
[Black "MatyChess1"]
[Result "0-1"]
[WhiteElo "2388"]
[BlackElo "2731"]
[TimeControl "180+1"]
[EndTime "8:21:00 PDT"]
[Termination "MatyChess1 won by resignation"]

1. d4 {[%clk 0:02:59.9]} 1... Nf6 {[%clk 0:02:59.2]} 2. c4 {[%clk 0:02:59.6]}
2... e6 {[%clk 0:02:59.6]} 3. g3 {[%clk 0:02:58.8]} 3... c5 {[%clk 0:02:59.1]}
4. Nf3 {[%clk 0:02:59.7]} 4... cxd4 {[%clk 0:02:58.3]} 5. Nxd4 {[%clk
0:02:59.8]} 5... d5 {[%clk 0:02:59.2]} 6. Bg2 {[%clk 0:02:57.1]} 6... e5 {[%clk
0:02:59.2]} 7. Nb5 {[%clk 0:02:44.9]} 7... d4 {[%clk 0:03:00.1]} 8. O-O {[%clk
0:02:38.2]} 8... Nc6 {[%clk 0:02:53.4]} 9. e3 {[%clk 0:02:32.3]} 9... a6 {[%clk
0:02:51.2]} 10. N5a3 {[%clk 0:02:28.6]} 10... Be7 {[%clk 0:02:44.3]} 11. exd4
{[%clk 0:02:26.9]} 11... exd4 {[%clk 0:02:45.2]} 12. Nc2 {[%clk 0:02:20]} 12...
d3 {[%clk 0:02:22.2]} 13. Ne3 {[%clk 0:02:19.5]} 13... O-O {[%clk 0:02:21.5]}
14. Bd2 {[%clk 0:02:16.3]} 14... Nd4 {[%clk 0:02:14.5]} 15. Nc3 {[%clk
0:02:16.5]} 15... Be6 {[%clk 0:01:56.9]} 16. Ncd5 {[%clk 0:02:14.2]} 16... Rc8
{[%clk 0:01:43.8]} 17. Kh1 {[%clk 0:02:06.9]} 17... b5 {[%clk 0:01:21.2]} 18.
Bc3 {[%clk 0:01:52]} 18... Nc2 {[%clk 0:00:38.4]} 19. Nxe7+ {[%clk 0:01:31.9]}
19... Qxe7 {[%clk 0:00:37]} 20. Qxd3 {[%clk 0:01:25.4]} 20... Nxa1 {[%clk
0:00:34.7]} 21. Rxa1 {[%clk 0:01:25.3]} 21... Rfd8 {[%clk 0:00:30]} 22. Qf1
{[%clk 0:01:21.6]} 22... Bxc4 {[%clk 0:00:19.8]} 23. Qe1 {[%clk 0:01:20.9]}
23... Be6 {[%clk 0:00:16.6]} 24. Ba5 {[%clk 0:01:19.8]} 24... Qd7 {[%clk
0:00:17.2]} 25. Bxd8 {[%clk 0:01:19.2]} 25... Qxd8 {[%clk 0:00:17.6]} 26. Rd1
{[%clk 0:01:19]} 26... Qc7 {[%clk 0:00:17.9]} 27. b3 {[%clk 0:01:18.5]} 27... h5
{[%clk 0:00:18.4]} 28. Qe2 {[%clk 0:01:15.6]} 28... g6 {[%clk 0:00:18.4]} 29.
Qd2 {[%clk 0:01:14.5]} 29... Qe5 {[%clk 0:00:18.5]} 30. h3 {[%clk 0:01:09.1]}
30... Ne4 {[%clk 0:00:18.1]} 31. Bxe4 {[%clk 0:01:07.4]} 31... Qxe4+ {[%clk
0:00:19]} 32. Kh2 {[%clk 0:01:08]} 32... Qf3 {[%clk 0:00:19]} 33. Rf1 {[%clk
0:01:04.1]} 33... Kh7 {[%clk 0:00:17.5]} 34. Qd1 {[%clk 0:01:00.7]} 34... Qe4
{[%clk 0:00:16.7]} 35. Qd2 {[%clk 0:00:58.6]} 35... Rc7 {[%clk 0:00:16.4]} 36.
Qe2 {[%clk 0:00:55]} 36... Rd7 {[%clk 0:00:16.6]} 37. Re1 {[%clk 0:00:50.4]}
37... Rc7 {[%clk 0:00:14.3]} 38. Ng2 {[%clk 0:00:46.4]} 38... Qxe2 {[%clk
0:00:12.2]} 39. Rxe2 {[%clk 0:00:47.3]} 39... Rc1 {[%clk 0:00:11.4]} 40. Nf4
{[%clk 0:00:46.9]} 40... Bf5 {[%clk 0:00:11.9]} 41. f3 {[%clk 0:00:45.6]} 41...
Kg7 {[%clk 0:00:11.9]} 42. g4 {[%clk 0:00:45.1]} 42... hxg4 {[%clk 0:00:12.4]}
43. hxg4 {[%clk 0:00:46]} 43... Bb1 {[%clk 0:00:13]} 44. Kg2 {[%clk 0:00:44.3]}
44... a5 {[%clk 0:00:11.2]} 45. Nd5 {[%clk 0:00:43.7]} 45... b4 {[%clk
0:00:10.8]} 46. Nb6 {[%clk 0:00:42.8]} 46... Bd3 {[%clk 0:00:10.2]} 47. Rd2
{[%clk 0:00:42.9]} 47... Bb5 {[%clk 0:00:08.6]} 48. Nd5 {[%clk 0:00:42.3]} 48...
Bc6 {[%clk 0:00:08.3]} 49. Kf2 {[%clk 0:00:42.1]} 49... Bxd5 {[%clk 0:00:07.8]}
50. Rxd5 {[%clk 0:00:41.7]} 50... Rc2+ {[%clk 0:00:08.7]} 51. Ke3 {[%clk
0:00:42.1]} 51... Rxa2 {[%clk 0:00:09.6]} 52. Rb5 {[%clk 0:00:42.1]} 52... Ra3
{[%clk 0:00:09.7]} 53. Kf4 {[%clk 0:00:42.1]} 53... Kf6 {[%clk 0:00:08.4]} 54.
g5+ {[%clk 0:00:41.8]} 54... Kg7 {[%clk 0:00:09.1]} 55. Rb7 {[%clk 0:00:41.9]}
55... Ra1 {[%clk 0:00:06.5]} 56. Ra7 {[%clk 0:00:42.8]} 56... Ra3 {[%clk
0:00:06.3]} 57. Ra6 {[%clk 0:00:42.1]} 57... Rxb3 {[%clk 0:00:06.2]} 58. Rxa5
{[%clk 0:00:42.1]} 58... Rc3 {[%clk 0:00:06.8]} 59. Rb5 {[%clk 0:00:42.7]} 59...
Rc4+ {[%clk 0:00:05.4]} 60. Kg3 {[%clk 0:00:42.1]} 60... Kf8 {[%clk 0:00:05.5]}
61. Rb7 {[%clk 0:00:41.8]} 61... Ke8 {[%clk 0:00:05.3]} 62. Kh3 {[%clk
0:00:41.1]} 62... Rd4 {[%clk 0:00:05.9]} 63. Kg3 {[%clk 0:00:41]} 63... Rc4
{[%clk 0:00:06.8]} 64. Kh3 {[%clk 0:00:40.9]} 64... Kf8 {[%clk 0:00:07.7]} 65.
Kg3 {[%clk 0:00:40.8]} 65... Rd4 {[%clk 0:00:08.4]} 66. Kh3 {[%clk 0:00:40.8]}
66... Kg7 {[%clk 0:00:08]} 67. Kg3 {[%clk 0:00:40.8]} 67... Kg8 {[%clk
0:00:08.7]} 68. Kh3 {[%clk 0:00:40.9]} 68... Kf8 {[%clk 0:00:09.4]} 69. Kg3
{[%clk 0:00:41]} 69... Ke8 {[%clk 0:00:10.1]} 70. Kf2 {[%clk 0:00:40.4]} 70...
Rd5 {[%clk 0:00:09.3]} 71. Rxb4 {[%clk 0:00:40]} 71... Rxg5 {[%clk 0:00:09.5]}
72. f4 {[%clk 0:00:40.3]} 72... Ra5 {[%clk 0:00:09.5]} 73. Kg3 {[%clk
0:00:39.9]} 73... Ke7 {[%clk 0:00:10]} 74. Rb6 {[%clk 0:00:40]} 74... Kf8 {[%clk
0:00:10.2]} 75. Kg4 {[%clk 0:00:39.3]} 75... Ra3 {[%clk 0:00:09.2]} 76. Kh4
{[%clk 0:00:38.9]} 76... Kg7 {[%clk 0:00:09.4]} 77. Kg4 {[%clk 0:00:37.8]} 77...
Kh6 {[%clk 0:00:09.2]} 78. Rf6 {[%clk 0:00:35.7]} 78... Kg7 {[%clk 0:00:08.1]}
79. Rb6 {[%clk 0:00:35.4]} 79... Ra4 {[%clk 0:00:08.4]} 80. Kg5 {[%clk
0:00:33.4]} 80... Ra5+ {[%clk 0:00:08]} 81. Kg4 {[%clk 0:00:33.5]} 81... Kh6
{[%clk 0:00:08.2]} 82. Rf6 {[%clk 0:00:32]} 82... Kg7 {[%clk 0:00:06.8]} 83. Rb6
{[%clk 0:00:31.6]} 83... Ra1 {[%clk 0:00:07.4]} 84. Kh4 {[%clk 0:00:29.4]} 84...
Rh1+ {[%clk 0:00:07.7]} 85. Kg4 {[%clk 0:00:29.4]} 85... Rg1+ {[%clk 0:00:08.6]}
86. Kh4 {[%clk 0:00:29.5]} 86... Rf1 {[%clk 0:00:09.5]} 87. Kg4 {[%clk
0:00:29.6]} 87... f5+ {[%clk 0:00:08]} 88. Kg3 {[%clk 0:00:29.6]} 88... Kh6
{[%clk 0:00:08.6]} 89. Rb8 {[%clk 0:00:22.3]} 89... Rg1+ {[%clk 0:00:08.7]} 90.
Kf3 {[%clk 0:00:22.2]} 90... Ra1 {[%clk 0:00:08.9]} 91. Rh8+ {[%clk 0:00:21.4]}
91... Kg7 {[%clk 0:00:09.6]} 92. Rb8 {[%clk 0:00:21.3]} 92... Ra3+ {[%clk
0:00:07.7]} 93. Kf2 {[%clk 0:00:20.8]} 93... Kh6 {[%clk 0:00:07]} 94. Rh8+
{[%clk 0:00:20.9]} 94... Kg7 {[%clk 0:00:07.4]} 95. Rb8 {[%clk 0:00:21.6]} 95...
Rc3 {[%clk 0:00:06.6]} 96. Kg2 {[%clk 0:00:21]} 96... Kf6 {[%clk 0:00:06.8]} 97.
Rb6+ {[%clk 0:00:20.5]} 97... Kf7 {[%clk 0:00:07.5]} 98. Kf1 {[%clk 0:00:19.8]}
98... Rc2 {[%clk 0:00:06.6]} 99. Rd6 {[%clk 0:00:17.5]} 99... Rc4 {[%clk
0:00:03.6]} 100. Kg2 {[%clk 0:00:17.3]} 100... Rxf4 {[%clk 0:00:03.9]} 101. Kg3
{[%clk 0:00:18.2]} 101... Rg4+ {[%clk 0:00:04.2]} 102. Kf3 {[%clk 0:00:17.8]}
102... Kg7 {[%clk 0:00:05.1]} 103. Ra6 {[%clk 0:00:17.6]} 103... Kh6 {[%clk
0:00:05.6]} 104. Ra8 {[%clk 0:00:17.6]} 104... Kg5 {[%clk 0:00:06.2]} 105. Rh8
{[%clk 0:00:17.8]} 105... Rh4 {[%clk 0:00:05.9]} 106. Rf8 {[%clk 0:00:17.7]}
106... Rh3+ {[%clk 0:00:06.5]} 107. Kg2 {[%clk 0:00:17.5]} 107... Ra3 {[%clk
0:00:07.4]} 108. Rg8 {[%clk 0:00:17.3]} 108... Kh5 {[%clk 0:00:07.9]} 109. Rh8+
{[%clk 0:00:17.4]} 109... Kg4 {[%clk 0:00:08.4]} 110. Re8 {[%clk 0:00:17.5]}
110... g5 {[%clk 0:00:08.9]} 111. Re2 {[%clk 0:00:17.8]} 111... f4 {[%clk
0:00:08.6]} 112. Rb2 {[%clk 0:00:18.7]} 112... Rg3+ {[%clk 0:00:07.9]} 113. Kf2
{[%clk 0:00:18.6]} 113... Rh3 {[%clk 0:00:08.8]} 114. Kg2 {[%clk 0:00:18.6]}
114... f3+ {[%clk 0:00:09.2]} 115. Kg1 {[%clk 0:00:18.7]} 115... Kg3 {[%clk
0:00:09.4]} 116. Rg2+ {[%clk 0:00:18.9]} 116... Kf4 {[%clk 0:00:08.8]} 117. Rb2
{[%clk 0:00:18]} 117... g4 {[%clk 0:00:09.3]} 118. Rb4+ {[%clk 0:00:15.9]}
118... Kg3 {[%clk 0:00:09.6]} 119. Rb2 {[%clk 0:00:15.9]} 119... Rh8 {[%clk
0:00:10.2]} 120. Rg2+ {[%clk 0:00:15.9]} 120... Kf4 {[%clk 0:00:11]} 121. Rb2
{[%clk 0:00:16.2]} 121... Ra8 {[%clk 0:00:11.2]} 122. Rb4+ {[%clk 0:00:15.9]}
122... Kg3 {[%clk 0:00:11.6]} 123. Rb1 {[%clk 0:00:15.9]} 123... Rh8 {[%clk
0:00:12.2]} 124. Rb2 {[%clk 0:00:14.5]} 124... Ra8 {[%clk 0:00:10.1]} 125. Rb1
{[%clk 0:00:11.1]} 125... Ra2 {[%clk 0:00:10.6]} 126. Kh1 {[%clk 0:00:10.6]}
126... Rh2+ {[%clk 0:00:10.5]} 127. Kg1 {[%clk 0:00:10.7]} 127... f2+ {[%clk
0:00:11.4]} 0-1